fUSD/lending_fUSD_20250503
["ID","MTS","AMOUNT","RATE_DAILY","PERIOD"]
[359672014,1746239443394,-450.0,0.00019592,2]
[359672015,1746239443404,-203.12657609,0.00019592,2]
[359672016,1746239443413,-466.17,0.00019592,2]
[359672017,1746239443423,-5041.18,0.00019592,2]
[359672018,1746239443433,-536.35,0.00019592,2]
[359672019,1746239443447,-450.0,0.00019592,2]
[359672020,1746239443460,-604.02,0.00019592,2]
[359672021,1746239443470,-27671.24,0.00019592,2]
[359672022,1746239443479,-794.37,0.00019592,2]
[359672023,1746239443489,-1744.7,0.00019592,2]
[359672024,1746239443499,-450.0,0.00019592,2]
[359672025,1746239443509,-15516.38,0.00019592,2]
[359672026,1746239443519,-450.0,0.00019592,2]
[359672027,1746239443529,-450.0,0.00019592,2]
[359672028,1746239443539,-450.0,0.00019592,2]
[359672029,1746239443549,-450.0,0.00019592,2]
[359672030,1746239443558,-166.88735199,0.00019592,2]
[359672031,1746239443567,-450.0,0.00019592,2]
[359672032,1746239443577,-450.0,0.00019592,2]
[359672033,1746239443587,-450.0,0.00019592,2]
[359672034,1746239443596,-460.4631633,0.00019592,2]
[359672035,1746239443606,-478.51,0.00019592,2]
[359672036,1746239443615,-450.0,0.00019592,2]
[359672037,1746239443625,-450.0,0.00019592,2]
[359672038,1746239443635,-455.06729876,0.00019592,2]
[359672039,1746239443644,-450.0,0.00019592,2]
[359672040,1746239443654,-467.16882008,0.00019592,2]
[359672041,1746239443663,-450.0,0.00019592,2]
[359672042,1746239443673,-2243.81,0.00019592,2]
[359672043,1746239443683,-450.0,0.00019592,2]
[359672044,1746239443693,-450.0,0.00019592,2]
[359672045,1746239443702,-450.0,0.00019592,2]
[359672046,1746239443712,-450.0,0.00019592,2]
[359672047,1746239443721,-450.0,0.00019592,2]
[359672048,1746239443731,-455.94,0.00019592,2]
[359672049,1746239443740,-450.0,0.00019592,2]
[359672050,1746239443750,-450.0,0.00019592,2]
[359672051,1746239443760,-1040.89,0.00019592,2]
[359672052,1746239443769,-450.0,0.00019592,2]
[359672053,1746239443779,-450.0,0.00019592,2]
[359672054,1746239443789,-450.0,0.00019592,2]
[359672055,1746239443799,-450.0,0.00019592,2]
[359672056,1746239443809,-1081.24,0.00019592,2]
[359672057,1746239443819,-450.0,0.00019592,2]
[359672058,1746239443829,-171.7368711,0.00019592,2]
[359672059,1746239443839,-450.0,0.00019592,2]
[359672060,1746239443848,-460.72547951,0.00019592,2]
[359672061,1746239443858,-620.66,0.00019593,2]
[359672062,1746239443866,-455.96,0.00019593,2]
[359672063,1746239443877,-465.05,0.00019593,2]
[359672064,1746239443887,-450.0,0.00019593,2]
[359672065,1746239443896,-450.0,0.00019593,2]
[359672066,1746239443906,-450.0,0.00019593,2]
[359672067,1746239443917,-450.0,0.00019593,2]
[359672068,1746239443927,-450.0,0.00019593,2]
[359672069,1746239443937,-450.0,0.00019593,2]
[359672070,1746239443946,-1032.87,0.00019593,2]
[359672071,1746239443956,-450.0,0.00019593,2]
[359672072,1746239443966,-450.0,0.00019593,2]
[359672073,1746239443976,-544.01,0.00019593,2]
[359672074,1746239443986,-552.36,0.00019593,2]
[359672075,1746239443996,-450.0,0.00019593,2]
[359672076,1746239444005,-1377.3,0.00019593,2]
[359672077,1746239444015,-450.0,0.00019593,2]
[359672078,1746239444024,-450.0,0.00019593,2]
[359672079,1746239444034,-450.0,0.00019593,2]
[359672080,1746239444043,-682.9,0.00019593,2]
[359672081,1746239444053,-523.9,0.00019593,2]
[359672082,1746239444063,-464.14593802,0.00019593,2]
[359672083,1746239444073,-450.0,0.00019593,2]
[359672084,1746239444083,-482.9,0.00019593,2]
[359672085,1746239444093,-528.59,0.00019593,2]
[359672086,1746239444102,-450.0,0.00019593,2]
[359672087,1746239444111,-450.0,0.00019593,2]
[359672088,1746239444121,-614.2,0.00019593,2]
[359672089,1746239444130,-450.0,0.00019593,2]
[359672090,1746239444139,-450.0,0.00019593,2]
[359672091,1746239444149,-560.66,0.00019593,2]
[359672092,1746239444158,-720.67,0.00019593,2]
[359672093,1746239444168,-711.7,0.00019593,2]
[359672094,1746239444177,-1649.13,0.00019593,2]
[359672095,1746239444187,-450.0,0.00019593,2]
[359672096,1746239444197,-560.78,0.00019593,2]
[359672097,1746239444207,-635.99,0.00019593,2]
[359672098,1746239444216,-466.47,0.00019593,2]
[359672099,1746239444226,-1120.02,0.00019593,2]
[359672100,1746239444235,-450.0,0.00019593,2]
[359672101,1746239444244,-450.0,0.00019593,2]
[359672102,1746239444254,-450.0,0.00019593,2]
[359672103,1746239444263,-365.0454029,0.00019593,2]
[359672104,1746239444274,-951.79,0.00019593,2]
[359672105,1746239444283,-450.0,0.00019593,2]
[359672106,1746239444293,-450.0,0.00019593,2]
[359672107,1746239444303,-516.14,0.00019593,2]
[359672108,1746239444312,-1432.92,0.00019593,2]
[359672109,1746239444321,-497.75,0.00019593,2]
[359672110,1746239444331,-450.0,0.00019593,2]
[359672111,1746239444341,-604.28,0.00019593,2]
[359672112,1746239444351,-632.47,0.00019593,2]
[359672113,1746239444361,-1648.11,0.00019593,2]
[359672114,1746239444370,-680.06,0.00019593,2]
[359672115,1746239444379,-450.0,0.00019593,2]
[359672116,1746239444389,-450.0,0.00019593,2]
[359672117,1746239444398,-450.0,0.00019593,2]
[359672118,1746239444407,-463.62,0.00019593,2]
[359672119,1746239444416,-977.42,0.00019593,2]
[359672120,1746239444426,-818.31,0.00019593,2]
[359672121,1746239444435,-450.0,0.00019593,2]
[359672122,1746239444447,-450.0,0.00019593,2]
[359672123,1746239444457,-450.0,0.00019593,2]
[359672124,1746239444466,-500.0,0.00019593,2]
[359672125,1746239444475,-450.0,0.00019593,2]
[359672126,1746239444485,-2480.99,0.00019593,2]
[359672127,1746239444494,-745.52,0.00019593,2]
[359672128,1746239444503,-1087.32,0.00019593,2]
[359672129,1746239444513,-450.0,0.00019593,2]
[359672130,1746239444523,-712.48,0.00019593,2]
[359672131,1746239444533,-2238.11,0.00019593,2]
[359672132,1746239444542,-588.96,0.00019593,2]
[359672133,1746239444553,-452.00734145,0.00019594,2]
[359672134,1746239444563,-450.0,0.00019594,2]
[359672135,1746239444572,-450.0,0.00019594,2]
[359672136,1746239444581,-450.0,0.00019594,2]
[359672137,1746239444591,-2574.75362702,0.00019623,2]
[359672138,1746239444600,-2462.62363216,0.00019628,2]
[359672139,1746239444610,-40973.25518653,0.00019654,2]
[359672140,1746239444621,-2574.75362702,0.00019669,2]
[359672141,1746239444634,-999.0,0.00019671,2]
[359672142,1746239444644,-2462.62363216,0.00019673,2]
[359672143,1746239444654,-500.0,0.00019693,2]
[359672144,1746239444664,-500.0,0.00019697,2]
[359672145,1746239444675,-150.0,0.00019697,2]
[359672146,1746239444685,-150.0,0.00019697,2]
[359672147,1746239444695,-500.0,0.00019697,2]
[359672148,1746239444705,-500.0,0.00019697,2]
[359672149,1746239444714,-150.0,0.00019697,2]
[359672150,1746239444724,-500.0,0.00019697,2]
[359672151,1746239444734,-150.0,0.00019697,2]
[359672152,1746239444743,-500.0,0.00019697,2]
[359672153,1746239444753,-150.0,0.00019697,2]
[359672154,1746239444763,-500.0,0.00019697,2]
[359672155,1746239444773,-206.06872167,0.00019697,2]
[359672156,1746239444783,-500.0,0.00019697,2]
[359672157,1746239444793,-150.0,0.00019697,2]
[359672158,1746239444802,-500.0,0.00019697,2]
[359672159,1746239444811,-500.0,0.00019697,2]
[359672160,1746239444821,-500.0,0.00019697,2]
[359672161,1746239444831,-500.0,0.00019697,2]
[359672162,1746239444840,-203.43647274,0.00019697,2]
[359672163,1746239444849,-150.0,0.00019704,2]
[359672164,1746239444859,-2574.75362702,0.00019716,2]
[359672165,1746239444874,-2462.62363216,0.00019719,2]
[359672166,1746239444883,-500.0,0.00019726,2]
[359672167,1746239444893,-150.0,0.00019728,2]
[359672168,1746239444902,-150.0,0.00019732,2]
[359672169,1746239444912,-150.0,0.00019732,2]
[359672170,1746239444921,-150.0,0.00019744,2]
[359672171,1746239444931,-7254.52710434,0.0001975,2]
[359672172,1746239444941,-150.0,0.00019752,2]
[359672173,1746239444950,-150.0,0.00019759,2]
[359672174,1746239444960,-2574.75362702,0.00019762,2]
[359672175,1746239444969,-2462.62363216,0.00019764,2]
[359672176,1746239444979,-219.49622307,0.00019766,2]
[359672177,1746239444989,-151.46858835,0.0001977,2]
[359672178,1746239444999,-151.0,0.00019772,2]
[359672179,1746239445012,-151.0,0.00019774,2]
[359672180,1746239445022,-150.0,0.00019775,2]
[359672181,1746239445032,-151.0,0.00019775,2]
[359672182,1746239445041,-151.0,0.00019776,2]
[359672183,1746239445051,-151.0,0.00019778,2]
[359672184,1746239445061,-150.0,0.0001978,2]
[359672185,1746239445070,-150.0,0.0001978,2]
[359672186,1746239445082,-500.0,0.00019781,2]
[359672187,1746239445092,-1398.16813934,0.00019794,2]
[359672188,1746239445101,-1058.8187082,0.00019799,2]
[359672189,1746239445111,-219.49622307,0.000198,2]
[359672190,1746239445120,-5071.79,0.000198,2]
[359672191,1746239445129,-11903.88005019,0.000198,2]
[359672192,1746239445139,-150.0,0.00019806,2]
[359672193,1746239445148,-2574.75362702,0.00019808,2]
[359672194,1746239445158,-150.0,0.00019809,2]
[359672195,1746239445167,-2462.62363216,0.00019809,2]
[359672196,1746239445176,-150.0,0.00019814,2]
[359672197,1746239445185,-12500.0,0.0001983,2]
[359672198,1746239445195,-150.0,0.0001983,2]
[359672199,1746239445204,-219.49622307,0.00019833,2]
[359672200,1746239445213,-166.2109942,0.00019834,2]
[359672201,1746239445223,-2877.86291704,0.00019836,2]
[359672202,1746239445232,-500.0,0.00019836,2]
[359672203,1746239445241,-12500.0,0.00019838,2]
[359672204,1746239445250,-2000.0,0.0001984,2]
[359672205,1746239445259,-200.0,0.0001984,2]
[359672206,1746239445269,-150.0,0.00019845,2]
[359672207,1746239445278,-500.0,0.00019846,2]
[359672208,1746239445287,-500.0,0.00019846,2]
[359672209,1746239445297,-500.0,0.00019846,2]
[359672210,1746239445307,-500.0,0.00019846,2]
[359672211,1746239445316,-193.68187159,0.00019846,2]
[359672212,1746239445325,-500.0,0.00019846,2]
[359672213,1746239445335,-500.0,0.00019846,2]
[359672214,1746239445344,-12500.0,0.00019847,2]
[359672215,1746239445354,-1000.0,0.00019848,2]
[359672216,1746239445363,-150.0,0.0001985,2]
[359672217,1746239445372,-2574.75362702,0.00019854,2]
[359672218,1746239445382,-2462.62363216,0.00019855,2]
[359672219,1746239445391,-166.2109942,0.00019856,2]
[359672221,1746239445400,-12500.0,0.00019856,2]
[359672222,1746239445409,-1077.03046632,0.00019856,2]
[359672223,1746239445419,-536.08767055,0.0001986,2]
[359672224,1746239445428,-450.0,0.0001986,2]
[359672225,1746239445437,-450.0,0.0001986,2]
[359672226,1746239445451,-450.0,0.0001986,2]
[359672227,1746239445460,-450.0,0.0001986,2]
[359672228,1746239445470,-450.0,0.0001986,2]
[359672229,1746239445479,-450.0,0.0001986,2]
[359672230,1746239445489,-477.13,0.0001986,2]
[359672231,1746239445498,-450.0,0.0001986,2]
[359672232,1746239445508,-450.0,0.0001986,2]
[359672233,1746239445517,-450.0,0.0001986,2]
[359672234,1746239445527,-496.14,0.0001986,2]
[359672235,1746239445536,-450.0,0.0001986,2]
[359672236,1746239445546,-1027.56,0.0001986,2]
[359672237,1746239445555,-4528.88,0.0001986,2]
[359672238,1746239445566,-450.0,0.0001986,2]
[359672239,1746239445576,-504.964828,0.0001986,2]
[359672240,1746239445586,-450.0,0.0001986,2]
[359672241,1746239445597,-450.0,0.0001986,2]
[359672242,1746239445608,-450.0,0.0001986,2]
[359672243,1746239445617,-1476.05,0.0001986,2]
[359672244,1746239445626,-857.216181,0.0001986,2]
[359672245,1746239445636,-450.0,0.0001986,2]
[359672246,1746239445646,-450.0,0.0001986,2]
[359672247,1746239445655,-450.0,0.0001986,2]
[359672248,1746239445665,-450.0,0.0001986,2]
[359672249,1746239445675,-450.0,0.0001986,2]
[359672250,1746239445684,-450.0,0.0001986,2]
[359672251,1746239445693,-6073.6,0.0001986,2]
[359672252,1746239445703,-1000.0,0.00019861,2]
[359672253,1746239445714,-450.0,0.00019861,2]
[359672254,1746239445723,-664.44,0.00019861,2]
[359672255,1746239445738,-528.12811078,0.00019861,2]
[359672256,1746239445751,-450.0,0.00019861,2]
[359672257,1746239445765,-450.0,0.00019861,2]
[359672258,1746239445779,-450.0,0.00019861,2]
[359672259,1746239445792,-450.0,0.00019861,2]
[359672260,1746239445804,-450.0,0.00019861,2]
[359672261,1746239445815,-450.0,0.00019861,2]
[359672262,1746239445826,-478.11,0.00019861,2]
[359672263,1746239445840,-1141.48,0.00019861,2]
[359672264,1746239445853,-395.39490778,0.00019861,2]
[359672265,1746239445864,-1209.7,0.00019861,2]
[359672266,1746239445876,-450.0,0.00019861,2]
[359672267,1746239445890,-450.0,0.00019861,2]
[359672268,1746239445903,-450.0,0.00019861,2]
[359672269,1746239445916,-519.37,0.00019861,2]
[359672270,1746239445929,-1021.32,0.00019861,2]
[359672271,1746239445942,-450.0,0.00019861,2]
[359672272,1746239445953,-526.38,0.00019861,2]
[359672273,1746239445966,-1563.24,0.00019861,2]
[359672274,1746239445977,-499.94,0.00019861,2]
[359672275,1746239445988,-450.0,0.00019861,2]
[359672276,1746239446000,-450.0,0.00019861,2]
[359672277,1746239446012,-33675.50977603,0.00019862,2]
[359672278,1746239446026,-450.0,0.00019863,2]
[359672279,1746239446038,-450.0,0.00019863,2]
[359672280,1746239446050,-414.13707132,0.00019863,2]
[359672281,1746239446063,-450.0,0.00019863,2]
[359672282,1746239446075,-450.0,0.00019863,2]
[359672283,1746239446088,-450.0,0.00019863,2]
[359672284,1746239446100,-450.0,0.00019863,2]
[359672285,1746239446112,-450.0,0.00019863,2]
[359672286,1746239446124,-450.0,0.00019863,2]
[359672287,1746239446136,-450.0,0.00019863,2]
[359672288,1746239446148,-450.0,0.00019863,2]
[359672289,1746239446160,-450.0,0.00019863,2]
[359672290,1746239446171,-450.0,0.00019863,2]
[359672291,1746239446184,-256.0435328,0.00019863,2]
[359672292,1746239446196,-770.04,0.00019863,2]
[359672293,1746239446207,-450.0,0.00019863,2]
[359672294,1746239446219,-450.0,0.00019863,2]
[359672295,1746239446231,-450.0,0.00019863,2]
[359672296,1746239446243,-592.73,0.00019863,2]
[359672297,1746239446254,-450.0,0.00019863,2]
[359672298,1746239446266,-450.0,0.00019863,2]
[359672299,1746239446277,-450.0,0.00019863,2]
[359672300,1746239446289,-450.0,0.00019863,2]
[359672301,1746239446301,-450.0,0.00019863,2]
[359672302,1746239446315,-450.0,0.00019863,2]
[359672303,1746239446327,-450.0,0.00019863,2]
[359672304,1746239446339,-450.0,0.00019863,2]
[359672305,1746239446351,-450.0,0.00019863,2]
[359672306,1746239446363,-450.0,0.00019863,2]
[359672307,1746239446377,-450.0,0.00019863,2]
[359672308,1746239446387,-450.0,0.00019863,2]
[359672309,1746239446398,-450.0,0.00019863,2]
[359672310,1746239446408,-450.0,0.00019863,2]
[359672311,1746239446420,-450.0,0.00019863,2]
[359672312,1746239446430,-450.0,0.00019863,2]
[359672313,1746239446443,-150.0,0.00019863,2]
[359672314,1746239446457,-450.0,0.00019863,2]
[359672315,1746239446470,-450.0,0.00019863,2]
[359672316,1746239446480,-842.53,0.00019863,2]
[359672317,1746239446491,-995.24,0.00019863,2]
[359672318,1746239446501,-450.0,0.00019863,2]
[359672319,1746239446511,-450.0,0.00019863,2]
[359672320,1746239446522,-494.56,0.00019863,2]
[359672321,1746239446533,-450.0,0.00019863,2]
[359672322,1746239446545,-221.93108247,0.00019863,2]
[359672323,1746239446558,-450.0,0.00019863,2]
[359672324,1746239446571,-450.0,0.00019863,2]
[359672325,1746239446582,-487.52,0.00019863,2]
[359672326,1746239446593,-466.81,0.00019863,2]
[359672327,1746239446603,-450.0,0.00019863,2]
[359672328,1746239446614,-450.0,0.00019863,2]
[359672329,1746239446624,-450.0,0.00019863,2]
[359672330,1746239446635,-5415.71,0.00019863,2]
[359672331,1746239446648,-484.56,0.00019863,2]
[359672332,1746239446659,-450.0,0.00019863,2]
[359672333,1746239446669,-450.0,0.00019863,2]
[359672334,1746239446680,-450.0,0.00019863,2]
[359672335,1746239446691,-167.28908916,0.00019863,2]
[359672336,1746239446703,-450.0,0.00019863,2]
[359672337,1746239446715,-450.0,0.00019863,2]
[359672338,1746239446727,-450.0,0.00019863,2]
[359672339,1746239446738,-450.0,0.00019863,2]
[359672340,1746239446754,-450.0,0.00019863,2]
[359672341,1746239446765,-598.05,0.00019863,2]
[359672342,1746239446777,-450.0,0.00019863,2]
[359672343,1746239446787,-450.0,0.00019863,2]
[359672344,1746239446799,-450.0,0.00019863,2]
[359672345,1746239446811,-2191.24,0.00019863,2]
[359672346,1746239446823,-114184.06,0.00019863,2]
[359672347,1746239446835,-450.0,0.00019863,2]
[359672348,1746239446846,-522.09,0.00019863,2]
[359672349,1746239446858,-1282.13,0.00019863,2]
[359672350,1746239446870,-999.0,0.00019863,2]
[359672351,1746239446881,-613.34,0.00019863,2]
[359672352,1746239446893,-450.0,0.00019863,2]
[359672353,1746239446905,-450.0,0.00019863,2]
[359672354,1746239446917,-450.0,0.00019863,2]
[359672355,1746239446930,-1727.22,0.00019863,2]
[359672356,1746239446942,-450.0,0.00019863,2]
[359672357,1746239446954,-450.0,0.00019863,2]
[359672358,1746239446966,-450.0,0.00019863,2]
[359672359,1746239446978,-547.18,0.00019863,2]
[359672360,1746239446990,-815.32,0.00019863,2]
[359672361,1746239447002,-450.0,0.00019863,2]
[359672362,1746239447014,-450.0,0.00019863,2]
[359672363,1746239447026,-504.83,0.00019863,2]
[359672364,1746239447037,-1460.55,0.00019863,2]
[359672365,1746239447048,-450.0,0.00019863,2]
[359672366,1746239447061,-3127.21,0.00019863,2]
[359672367,1746239447077,-564.77,0.00019863,2]
[359672368,1746239447089,-503.84,0.00019863,2]
[359672369,1746239447100,-450.0,0.00019863,2]
[359672370,1746239447113,-450.0,0.00019863,2]
[359672371,1746239447124,-514.56,0.00019863,2]
[359672372,1746239447135,-450.0,0.00019863,2]
[359672373,1746239447148,-2852.42,0.00019863,2]
[359672374,1746239447161,-450.0,0.00019863,2]
[359672375,1746239447173,-577.02,0.00019863,2]
[359672376,1746239447184,-450.0,0.00019863,2]
[359672377,1746239447195,-12500.0,0.00019865,2]
[359672378,1746239447207,-12500.0,0.00019865,2]
[359672379,1746239447218,-450.0,0.00019866,2]
[359672380,1746239447230,-450.0,0.00019866,2]
[359672381,1746239447241,-450.0,0.00019866,2]
[359672382,1746239447252,-312.08845555,0.00019866,2]
[359672383,1746239447264,-450.0,0.00019866,2]
[359672384,1746239447275,-450.0,0.00019866,2]
[359672385,1746239447287,-450.0,0.00019866,2]
[359672386,1746239447298,-450.0,0.00019866,2]
[359672387,1746239447311,-450.0,0.00019866,2]
[359672388,1746239447322,-450.0,0.00019866,2]
[359672389,1746239447332,-450.0,0.00019866,2]
[359672390,1746239447343,-450.0,0.00019866,2]
[359672391,1746239447354,-450.0,0.00019866,2]
[359672392,1746239447365,-317.40863215,0.00019866,2]
[359672393,1746239447376,-450.0,0.00019866,2]
[359672394,1746239447387,-450.0,0.00019866,2]
[359672395,1746239447398,-450.0,0.00019866,2]
[359672396,1746239447409,-450.0,0.00019866,2]
[359672397,1746239447419,-450.0,0.00019866,2]
[359672398,1746239447430,-450.0,0.00019866,2]
[359672399,1746239447442,-450.0,0.00019866,2]
[359672400,1746239447456,-450.0,0.00019866,2]
[359672401,1746239447467,-450.0,0.00019866,2]
[359672402,1746239447479,-482.07,0.00019866,2]
[359672403,1746239447491,-450.0,0.00019866,2]
[359672404,1746239447502,-450.0,0.00019866,2]
[359672405,1746239447513,-450.0,0.00019866,2]
[359672406,1746239447525,-450.0,0.00019866,2]
[359672407,1746239447536,-585.64,0.00019866,2]
[359672408,1746239447547,-450.0,0.00019866,2]
[359672409,1746239447557,-450.0,0.00019866,2]
[359672410,1746239447568,-450.0,0.00019866,2]
[359672411,1746239447579,-450.0,0.00019866,2]
[359672412,1746239447590,-450.0,0.00019866,2]
[359672413,1746239447601,-450.0,0.00019866,2]
[359672414,1746239447611,-450.0,0.00019866,2]
[359672415,1746239447622,-450.0,0.00019866,2]
[359672416,1746239447633,-450.0,0.00019866,2]
[359672417,1746239447644,-450.0,0.00019866,2]
[359672418,1746239447654,-450.0,0.00019866,2]
[359672419,1746239447666,-450.0,0.00019866,2]
[359672420,1746239447677,-457.6,0.00019866,2]
[359672421,1746239447688,-450.0,0.00019866,2]
[359672422,1746239447698,-450.0,0.00019866,2]
[359672423,1746239447709,-450.0,0.00019866,2]
[359672424,1746239447719,-522.54,0.00019866,2]
[359672425,1746239447730,-450.0,0.00019866,2]
[359672426,1746239447740,-450.0,0.00019866,2]
[359672427,1746239447751,-537.71,0.00019866,2]
[359672428,1746239447762,-450.0,0.00019866,2]
[359672429,1746239447772,-450.0,0.00019866,2]
[359672430,1746239447782,-450.0,0.00019866,2]
[359672431,1746239447792,-450.0,0.00019866,2]
[359672432,1746239447802,-450.0,0.00019866,2]
[359672433,1746239447813,-450.0,0.00019866,2]
[359672434,1746239447823,-450.0,0.00019866,2]
[359672435,1746239447833,-450.0,0.00019866,2]
[359672436,1746239447843,-450.0,0.00019866,2]
[359672437,1746239447853,-759.57,0.00019866,2]
[359672438,1746239447863,-450.0,0.00019866,2]
[359672439,1746239447874,-450.0,0.00019866,2]
[359672440,1746239447884,-802.32,0.00019866,2]
[359672441,1746239447894,-450.0,0.00019866,2]
[359672442,1746239447904,-450.0,0.00019866,2]
[359672443,1746239447914,-450.0,0.00019866,2]
[359672444,1746239447924,-450.0,0.00019866,2]
[359672445,1746239447935,-725.12,0.00019866,2]
[359672446,1746239447945,-808.75,0.00019866,2]
[359672447,1746239447955,-3836.06,0.00019866,2]
[359672448,1746239447966,-450.0,0.00019866,2]
[359672449,1746239447976,-450.0,0.00019866,2]
[359672450,1746239447987,-462.97,0.00019866,2]
[359672451,1746239447997,-4710.05,0.00019866,2]
[359672452,1746239448008,-548.9,0.00019866,2]
[359672453,1746239448018,-462.88,0.00019866,2]
[359672454,1746239448028,-4283.39,0.00019866,2]
[359672455,1746239448040,-450.0,0.00019866,2]
[359672456,1746239448050,-450.0,0.00019866,2]
[359672457,1746239448061,-959.31,0.00019866,2]
[359672458,1746239448072,-864.75,0.00019866,2]
[359672459,1746239448083,-450.0,0.00019866,2]
[359672460,1746239448093,-1989.65,0.00019866,2]
[359672461,1746239448104,-450.0,0.00019866,2]
[359672462,1746239448115,-450.0,0.00019866,2]
[359672463,1746239448125,-450.0,0.00019866,2]
[359672464,1746239448136,-85177.16,0.00019866,2]
[359672465,1746239448146,-300.0,0.00019866,2]
[359672466,1746239448156,-450.0,0.00019866,2]
[359672467,1746239448167,-466.17,0.00019866,2]
[359672468,1746239448177,-5041.18,0.00019866,2]
[359672469,1746239448188,-536.35,0.00019866,2]
[359672470,1746239448198,-450.0,0.00019866,2]
[359672471,1746239448209,-604.02,0.00019866,2]
[359672472,1746239448220,-27671.24,0.00019866,2]
[359672473,1746239448231,-794.37,0.00019866,2]
[359672474,1746239448242,-1744.7,0.00019866,2]
[359672475,1746239448253,-450.0,0.00019866,2]
[359672476,1746239448265,-15516.38,0.00019866,2]
[359672477,1746239448276,-450.0,0.00019866,2]
[359672478,1746239448286,-454.53686391,0.00019866,2]
[359672479,1746239448297,-450.0,0.00019866,2]
[359672480,1746239448308,-473.26684363,0.00019866,2]
[359672481,1746239448319,-450.0,0.00019866,2]
[359672482,1746239448330,-450.0,0.00019866,2]
[359672483,1746239448341,-450.0,0.00019866,2]
[359672484,1746239448351,-478.51,0.00019866,2]
[359672485,1746239448362,-450.0,0.00019866,2]
[359672486,1746239448373,-450.0,0.00019866,2]
[359672487,1746239448384,-450.0,0.00019866,2]
[359672488,1746239448395,-472.15560293,0.00019866,2]
[359672489,1746239448406,-2243.81,0.00019866,2]
[359672490,1746239448416,-450.0,0.00019866,2]
[359672491,1746239448427,-450.0,0.00019866,2]
[359672492,1746239448437,-450.0,0.00019866,2]
[359672493,1746239448450,-450.0,0.00019866,2]
[359672494,1746239448461,-450.0,0.00019866,2]
[359672495,1746239448472,-455.94,0.00019866,2]
[359672496,1746239448483,-293.557934,0.00019866,2]
[359672497,1746239448493,-450.0,0.00019866,2]
[359672498,1746239448504,-1040.89,0.00019866,2]
[359672499,1746239448514,-450.0,0.00019866,2]
[359672500,1746239448528,-450.96282215,0.00019866,2]
[359672501,1746239448540,-450.0,0.00019866,2]
[359672502,1746239448551,-450.0,0.00019866,2]
[359672503,1746239448562,-1081.24,0.00019866,2]
[359672504,1746239448572,-450.0,0.00019866,2]
[359672505,1746239448583,-450.0,0.00019866,2]
[359672506,1746239448594,-219.49622307,0.00019867,2]
[359672507,1746239448604,-620.66,0.00019867,2]
[359672508,1746239448615,-455.96,0.00019867,2]
[359672509,1746239448626,-465.05,0.00019867,2]
[359672510,1746239448636,-450.0,0.00019867,2]
[359672511,1746239448647,-450.0,0.00019867,2]
[359672512,1746239448657,-450.0,0.00019867,2]
[359672513,1746239448668,-450.0,0.00019867,2]
[359672514,1746239448679,-589.46,0.00019867,2]